Workbook

Sheet Sheet1
A2: 耕地深松作业验收单公示
A3: 旗县（区）、乡、村（垦区、农场、农场生产队）名称： 磴口县
A4: 序号 | B4: 土地经营者姓名或名称 | C4: 作业地点 | D4: 作业时间 | E4: 作业面积（亩） | F4: 作业模式 | G4: 作业深度（厘米） | H4: 作业机手姓名 | I4: 农机作业服务组织或农机户名称
A6: 1 | B6: 王文广 | C6: 磴口县纳林套海农场三分场 | D6: 2025年4月9日-4月10日 | E6: 280 | F6: 深松 | G6: 37 | H6: 曹廷杰 | I6: 磴口县启辰农机农民专业合作社
A7: 合计 | E7: 280
A8: 旗县（区）农牧部门、垦区农机化管理部门（盖章）： 联系人：王月明
A9: 注：本表公示无异议后，作为核算补助金额的依据。
A11: 耕地深松作业验收单公示
A12: 旗县（区）、乡、村（垦区、农场、农场生产队）名称： 磴口县
A13: 序号 | B13: 土地经营者姓名或名称 | C13: 作业地点 | D13: 作业时间 | E13: 作业面积（亩） | F13: 作业模式 | G13: 作业深度（厘米） | H13: 作业机手姓名 | I13: 农机作业服务组织或农机户名称
A15: 1 | B15: 梁振平 | C15: 磴口县沙金苏木巴音毛道嘎查 | D15: 2025年4月8日-4月12日 | E15: 645 | F15: 深松 | G15: 37 | H15: 陈德才 | I15: 磴口县益农农机专业合作社
A16: 合计 | E16: 645
A17: 旗县（区）农牧部门、垦区农机化管理部门（盖章）： 联系人：王月明
A18: 注：本表公示无异议后，作为核算补助金额的依据。
A19: 耕地深松作业验收单公示
A20: 旗县（区）、乡、村（垦区、农场、农场生产队）名称： 磴口县
A21: 序号 | B21: 土地经营者姓名或名称 | C21: 作业地点 | D21: 作业时间 | E21: 作业面积（亩） | F21: 作业模式 | G21: 作业深度（厘米） | H21: 作业机手姓名 | I21: 农机作业服务组织或农机户名称
A23: 1 | B23: 韩德功 | C23: 磴口县包尔盖农场哈吉线 | D23: 2025-04-08 | E23: 349 | F23: 深松 | G23: 34 | H23: 丁彦 | I23: 磴口县牵力丙林种养殖农民专业合作社
A24: 2 | B24: 赵军 | C24: 磴口县沙金套海苏木哈业乌素嘎查 | D24: 2025-04-09 | E24: 303 | F24: 深松 | G24: 36 | H24: 李林 | I24: 磴口县牵力丙林种养殖农民专业合作社
A25: 3 | B25: 张文丙 | C25: 磴口县沙金套海苏木哈业乌素嘎查 | D25: 2025-04-10 | E25: 330 | F25: 深松 | G25: 33 | H25: 丁彦 | I25: 磴口县牵力丙林种养殖农民专业合作社
A26: 4 | B26: 柴玉龙 | C26: 磴口县沙金套海苏木那仁宝力格嘎查 | D26: 2025-04-11 | E26: 230 | F26: 深松 | G26: 32 | H26: 丁彦 | I26: 磴口县牵力丙林种养殖农民专业合作社
A27: 5 | B27: 岑小龙 | C27: 磴口县沙金套海苏木哈业乌素嘎查 | D27: 2025-04-12 | E27: 268 | F27: 深松 | G27: 35 | H27: 丁彦 | I27: 磴口县牵力丙林种养殖农民专业合作社
A28: 合计 | E28: 1480
A29: 旗县（区）农牧部门、垦区农机化管理部门（盖章）： 联系人：王月明
A30: 注：本表公示无异议后，作为核算补助金额的依据。
A31: 耕地深松作业验收单公示
A32: 旗县（区）、乡、村（垦区、农场、农场生产队）名称： 磴口县
A33: 序号 | B33: 土地经营者姓名或名称 | C33: 作业地点 | D33: 作业时间 | E33: 作业面积（亩） | F33: 作业模式 | G33: 作业深度（厘米） | H33: 作业机手姓名 | I33: 农机作业服务组织或农机户名称
A35: 1 | B35: 朱辉 | C35: 磴口县沙金套海苏木巴音温都尔嘎查一社 | D35: 2025年4月8日 -4月10日 | E35: 803 | F35: 深松 | G35: 35 | H35: 董宏 | I35: 磴口县朝勒门农机农民专业合作社
A36: 2 | B36: 李根 | C36: 磴口县沙金套海苏木巴音温都尔嘎查一社 | D36: 2025-04-11 | E36: 359 | F36: 深松 | G36: 35 | H36: 董宏 | I36: 磴口县朝勒门农机农民专业合作社
A37: 3 | B37: 齐七民 | C37: 磴口县沙金套海苏木巴音温都尔嘎查一社 | D37: 2025-04-12 | E37: 71 | F37: 深松 | G37: 35 | H37: 董宏 | I37: 磴口县朝勒门农机农民专业合作社
A38: 合计 | E38: 1233
A39: 旗县（区）农牧部门、垦区农机化管理部门（盖章）： 联系人：王月明
A40: 注：本表公示无异议后，作为核算补助金额的依据。
A41: 耕地深松作业验收单公示
A42: 旗县（区）、乡、村（垦区、农场、农场生产队）名称： 磴口县
A43: 序号 | B43: 土地经营者姓名或名称 | C43: 作业地点 | D43: 作业时间 | E43: 作业面积（亩） | F43: 作业模式 | G43: 作业深度（厘米） | H43: 作业机手姓名 | I43: 农机作业服务组织或农机户名称
A45: 1 | B45: 高汉海 | C45: 磴口县哈腾套海农场八分场 | D45: 2025-04-12 | E45: 240 | F45: 深松 | G45: 37 | H45: 高峰 | I45: 磴口县兄弟农机专业合作社
A46: 2 | B46: 叶腾 | C46: 磴口县哈腾套海农场十分场 | D46: 2025-04-09 | E46: 140 | F46: 深松 | G46: 36 | H46: 高峰 | I46: 磴口县兄弟农机专业合作社
A47: 3 | B47: 栗海峰 | C47: 磴口县哈腾套海农场八分场 | D47: 2025-04-08 | E47: 165 | F47: 深松 | G47: 34 | H47: 高峰 | I47: 磴口县兄弟农机专业合作社
A48: 合计 | E48: =SUM(E45:E47) -> 545
A49: 旗县（区）农牧部门、垦区农机化管理部门（盖章）： 联系人：王月明
A50: 注：本表公示无异议后，作为核算补助金额的依据。
A51: 耕地深松作业验收单公示
A52: 旗县（区）、乡、村（垦区、农场、农场生产队）名称： 磴口县
A53: 序号 | B53: 土地经营者姓名或名称 | C53: 作业地点 | D53: 作业时间 | E53: 作业面积（亩） | F53: 作业模式 | G53: 作业深度（厘米） | H53: 作业机手姓名 | I53: 农机作业服务组织或农机户名称
A55: 1 | B55: 潘竞玉 | C55: 磴口县沙金苏木巴音毛道嘎查 | D55: 2025年4月8日-4月12日 | E55: 153 | F55: 深松 | G55: 36 | H55: 郭光孝 | I55: 磴口县益农农机专业合作社
A56: 合计 | E56: =SUM(E55:E55) -> 153
A57: 旗县（区）农牧部门、垦区农机化管理部门（盖章）： 联系人：王月明
A58: 注：本表公示无异议后，作为核算补助金额的依据。
A59: 耕地深松作业验收单公示
A60: 旗县（区）、乡、村（垦区、农场、农场生产队）名称： 磴口县
A61: 序号 | B61: 土地经营者姓名或名称 | C61: 作业地点 | D61: 作业时间 | E61: 作业面积（亩） | F61: 作业模式 | G61: 作业深度（厘米） | H61: 作业机手姓名 | I61: 农机作业服务组织或农机户名称
A63: 1 | B63: 郭树兴 | C63: 磴口县沙金苏木巴音毛道嘎查 | D63: 2025年4月8日-4月12日 | E63: 656 | F63: 深松 | G63: 35 | H63: 郭继仁 | I63: 磴口县益农农机专业合作社
A64: 合计 | E64: =SUM(E63:E63) -> 656
A65: 旗县（区）农牧部门、垦区农机化管理部门（盖章）： 联系人：王月明
A66: 注：本表公示无异议后，作为核算补助金额的依据。
A67: 耕地深松作业验收单公示
A68: 旗县（区）、乡、村（垦区、农场、农场生产队）名称： 磴口县
A69: 序号 | B69: 土地经营者姓名或名称 | C69: 作业地点 | D69: 作业时间 | E69: 作业面积（亩） | F69: 作业模式 | G69: 作业深度（厘米） | H69: 作业机手姓名 | I69: 农机作业服务组织或农机户名称
A71: 1 | B71: 王占明 | C71: 磴口县实验局一场 | D71: 2025-04-08 | E71: 529 | F71: 深松 | G71: 38 | H71: 韩瑞平 | I71: 磴口县智能农机专业合作社
A72: 2 | B72: 黄瑞 | C72: 磴口县实验局一场 | D72: 2025-04-09 | E72: 591 | F72: 深松 | G72: 35 | H72: 郭键 | I72: 磴口县智能农机专业合作社
A73: 3 | B73: 王志亮 | C73: 磴口县实验局二场 | D73: 2025-04-10 | E73: 458 | F73: 深松 | G73: 38 | H73: 韩瑞平 | I73: 磴口县智能农机专业合作社
A74: 4 | B74: 张支强 | C74: 磴口县实验局一场 | D74: 2025-04-08 | E74: 517 | F74: 深松 | G74: 36 | H74: 何琳 | I74: 磴口县智能农机专业合作社
A75: 5 | B75: 李江波 | C75: 磴口县实验局一场 | D75: 2025-04-09 | E75: 481 | F75: 深松 | G75: 38 | H75: 郭键 | I75: 磴口县智能农机专业合作社
A76: 6 | B76: 杨占强 | C76: 磴口县实验局二场 | D76: 2025-04-11 | E76: 275 | F76: 深松 | G76: 39 | H76: 何琳 | I76: 磴口县智能农机专业合作社
A77: 7 | B77: 史博 | C77: 磴口县实验局二场 | D77: 2025-04-02 | E77: 144 | F77: 深松 | G77: 38 | H77: 韩瑞平 | I77: 磴口县智能农机专业合作社
A78: 合计 | E78: =SUM(E71:E77) -> 2995
A79: 旗县（区）农牧部门、垦区农机化管理部门（盖章）： 联系人：王月明
A80: 注：本表公示无异议后，作为核算补助金额的依据。
A81: 耕地深松作业验收单公示
A82: 旗县（区）、乡、村（垦区、农场、农场生产队）名称： 磴口县
A83: 序号 | B83: 土地经营者姓名或名称 | C83: 作业地点 | D83: 作业时间 | E83: 作业面积（亩） | F83: 作业模式 | G83: 作业深度（厘米） | H83: 作业机手姓名 | I83: 农机作业服务组织或农机户名称
A85: 1 | B85: 王美 | C85: 磴口县沙金套海苏木巴音温都尔嘎查二社 | D85: 2025年4月8日-4月12日 | E85: 150 | F85: 深松 | G85: 33 | H85: 哈斯达来 | I85: 磴口县朝勒门农机农民专业合作社
A86: 合计 | E86: 150
A87: 旗县（区）农牧部门、垦区农机化管理部门（盖章）： 联系人：王月明
A88: 注：本表公示无异议后，作为核算补助金额的依据。
A89: 耕地深松作业验收单公示
A90: 旗县（区）、乡、村（垦区、农场、农场生产队）名称： 磴口县
A91: 序号 | B91: 土地经营者姓名或名称 | C91: 作业地点 | D91: 作业时间 | E91: 作业面积（亩） | F91: 作业模式 | G91: 作业深度（厘米） | H91: 作业机手姓名 | I91: 农机作业服务组织或农机户名称
A93: 1 | B93: 崔存林 | C93: 磴口县实验局四场 | D93: 2025-04-11 | E93: 156 | F93: 深松 | G93: 35 | H93: 韩喜 | I93: 磴口县金秋农业机械种养殖农民专业合作社
A94: 2 | B94: 贾叶清 | C94: 磴口县实验局三场 | D94: 2025-04-09 | E94: 144 | F94: 深松 | G94: 35 | H94: 韩喜 | I94: 磴口县金秋农业机械种养殖农民专业合作社
A95: 3 | B95: 高长喜 | C95: 磴口县实验局三场 | D95: 2025-04-08 | E95: 227 | F95: 深松 | G95: 35 | H95: 韩喜 | I95: 磴口县金秋农业机械种养殖农民专业合作社
A96: 4 | B96: 杨杰 | C96: 磴口县实验局三场 | D96: 2025-04-10 | E96: 198 | F96: 深松 | G96: 35 | H96: 韩喜 | I96: 磴口县金秋农业机械种养殖农民专业合作社
A97: 合计 | E97: =SUM(E93:E96) -> 725
A98: 旗县（区）农牧部门、垦区农机化管理部门（盖章）： 联系人：王月明
A99: 注：本表公示无异议后，作为核算补助金额的依据。
A100: 耕地深松作业验收单公示
A101: 旗县（区）、乡、村（垦区、农场、农场生产队）名称： 磴口县
A102: 序号 | B102: 土地经营者姓名或名称 | C102: 作业地点 | D102: 作业时间 | E102: 作业面积（亩） | F102: 作业模式 | G102: 作业深度（厘米） | H102: 作业机手姓名 | I102: 农机作业服务组织或农机户名称
A104: 1 | B104: 王东 | C104: 磴口县乌兰布和农场五分场 | D104: 2025-04-08 | E104: 37 | F104: 深松 | G104: 33 | H104: 郝栓虎 | I104: 磴口县欣荣农牧业农民专业合作社
A105: 2 | B105: 段永强 | C105: 磴口县乌兰布和农场六分场 | D105: 2025-04-09 | E105: 70 | F105: 深松 | G105: 35 | H105: 郝栓虎 | I105: 磴口县欣荣农牧业农民专业合作社
A106: 合计 | E106: =SUM(E104:E105) -> 107
A107: 旗县（区）农牧部门、垦区农机化管理部门（盖章）： 联系人：王月明
A108: 注：本表公示无异议后，作为核算补助金额的依据。
A109: 耕地深松作业验收单公示
A110: 旗县（区）、乡、村（垦区、农场、农场生产队）名称： 磴口县
A111: 序号 | B111: 土地经营者姓名或名称 | C111: 作业地点 | D111: 作业时间 | E111: 作业面积（亩） | F111: 作业模式 | G111: 作业深度（厘米） | H111: 作业机手姓名 | I111: 农机作业服务组织或农机户名称
A113: 1 | B113: 刘宝园 | C113: 磴口县巴彦高勒镇 南粮台村 | D113: 2025-04-08 | E113: 90 | F113: 深松 | G113: 35 | H113: 贺巴图 | I113: 磴口县飞宇农机作业专业合作社
A114: 2 | B114: 宋亮 | C114: 磴口县巴彦高勒镇 南粮台村 | D114: 2025-04-09 | E114: 315 | F114: 深松 | G114: 35 | H114: 贺巴图 | I114: 磴口县飞宇农机作业专业合作社
A115: 3 | B115: 付纯磊 | C115: 磴口县巴彦高勒镇 沙拉毛道嘎查 | D115: 2025-04-10 | E115: 263 | F115: 深松 | G115: 35 | H115: 贺巴图 | I115: 磴口县飞宇农机作业专业合作社
A116: 4 | B116: 何强 | C116: 磴口县沙漠林业实验中心第一实验场 | D116: 2025-04-11 | E116: 280 | F116: 深松 | G116: 34 | H116: 贺巴图 | I116: 磴口县飞宇农机作业专业合作社
A117: 5 | B117: 李志丹 | C117: 磴口县巴彦高勒镇 南粮台村 | D117: 2025-04-12 | E117: 304 | F117: 深松 | G117: 34 | H117: 贺巴图 | I117: 磴口县飞宇农机作业专业合作社
A118: 合计 | E118: =SUM(E113:E117) -> 1252
A119: 旗县（区）农牧部门、垦区农机化管理部门（盖章）： 联系人：王月明
A120: 注：本表公示无异议后，作为核算补助金额的依据。
A121: 耕地深松作业验收单公示
A122: 旗县（区）、乡、村（垦区、农场、农场生产队）名称： 磴口县
A123: 序号 | B123: 土地经营者姓名或名称 | C123: 作业地点 | D123: 作业时间 | E123: 作业面积（亩） | F123: 作业模式 | G123: 作业深度（厘米） | H123: 作业机手姓名 | I123: 农机作业服务组织或农机户名称
A125: 1 | B125: 何亮 | C125: 磴口县乌兰布和农场五分场 | D125: 2025年4月8日-4月9日 | E125: 267 | F125: 深松 | G125: 33 | H125: 贺孝平 | I125: 磴口县金辉农机农民专业合作社
A126: 2 | B126: 贺孝成 | C126: 磴口县乌兰布和农场五分场 | D126: 2025年4月9日-4月12日 | E126: 287 | F126: 深松 | G126: 35 | H126: 贺孝平 | I126: 磴口县金辉农机农民专业合作社
A127: 合计 | E127: 554
A128: 旗县（区）农牧部门、垦区农机化管理部门（盖章）： 联系人：王月明
A129: 注：本表公示无异议后，作为核算补助金额的依据。
A130: 耕地深松作业验收单公示
A131: 旗县（区）、乡、村（垦区、农场、农场生产队）名称： 磴口县
A132: 序号 | B132: 土地经营者姓名或名称 | C132: 作业地点 | D132: 作业时间 | E132: 作业面积（亩） | F132: 作业模式 | G132: 作业深度（厘米） | H132: 作业机手姓名 | I132: 农机作业服务组织或农机户名称
A134: 1 | B134: 宋建强 | C134: 磴口县沙金套海苏木温都尔毛道嘎查 | D134: 2025年4月9日4月-12日 | E134: 788 | F134: 深松 | G134: 35 | H134: 胡光伟 | I134: 磴口县祥和家庭农场
A135: 2 | B135: 胡爱荣 | C135: 磴口县沙金套海苏木温都尔毛道嘎查 | D135: 2025-04-08 | E135: 278 | F135: 深松 | G135: 34 | H135: 胡光伟 | I135: 磴口县祥和家庭农场
A136: 合计 | E136: =SUM(E134:E135) -> 1066
A137: 旗县（区）农牧部门、垦区农机化管理部门（盖章）： 联系人：王月明
A138: 注：本表公示无异议后，作为核算补助金额的依据。
A139: 耕地深松作业验收单公示
A140: 旗县（区）、乡、村（垦区、农场、农场生产队）名称： 磴口县
A141: 序号 | B141: 土地经营者姓名或名称 | C141: 作业地点 | D141: 作业时间 | E141: 作业面积（亩） | F141: 作业模式 | G141: 作业深度（厘米） | H141: 作业机手姓名 | I141: 农机作业服务组织或农机户名称
A143: 1 | B143: 李永军 | C143: 磴口县巴彦高勒镇沙拉毛道嘎查 | D143: 2025-04-09 | E143: 136 | F143: 深松 | G143: 38 | H143: 胡其图 | I143: 磴口县富兴源种养殖农民专业合作社
A144: 2 | B144: 李永兵 | C144: 磴口县巴彦高勒镇沙拉毛道嘎查 | D144: 2025-04-10 | E144: 134 | F144: 深松 | G144: 39 | H144: 胡其图 | I144: 磴口县富兴源种养殖农民专业合作社
A145: 3 | B145: 尹俊峰 | C145: 磴口县巴彦高勒镇沙拉毛道嘎查 | D145: 2025-04-11 | E145: 137 | F145: 深松 | G145: 38 | H145: 胡其图 | I145: 磴口县富兴源种养殖农民专业合作社
A146: 4 | B146: 李发虎 | C146: 磴口县巴彦高勒镇沙拉毛道嘎查 | D146: 2025-04-12 | E146: 59 | F146: 深松 | G146: 38 | H146: 胡其图 | I146: 磴口县富兴源种养殖农民专业合作社
A147: 合计 | E147: =SUM(E143:E146) -> 466
A148: 旗县（区）农牧部门、垦区农机化管理部门（盖章）： 联系人：王月明
A149: 注：本表公示无异议后，作为核算补助金额的依据。
A150: 耕地深松作业验收单公示
A151: 旗县（区）、乡、村（垦区、农场、农场生产队）名称： 磴口县
A152: 序号 | B152: 土地经营者姓名或名称 | C152: 作业地点 | D152: 作业时间 | E152: 作业面积（亩） | F152: 作业模式 | G152: 作业深度（厘米） | H152: 作业机手姓名 | I152: 农机作业服务组织或农机户名称
A154: 1 | B154: 贾乐小 | C154: 磴口县沙金苏木那仁宝力格嘎查 | D154: 2025年4月9日--4月12日 | E154: 224 | F154: 深松 | G154: 36 | H154: 贾小宇 | I154: 内蒙古玉源泉生态农林牧发展有限公司
A155: 合计 | E155: =SUM(E154:E154) -> 224
A156: 旗县（区）农牧部门、垦区农机化管理部门（盖章）： 联系人：王月明
A157: 注：本表公示无异议后，作为核算补助金额的依据。
A158: 耕地深松作业验收单公示
A159: 旗县（区）、乡、村（垦区、农场、农场生产队）名称： 磴口县
A160: 序号 | B160: 土地经营者姓名或名称 | C160: 作业地点 | D160: 作业时间 | E160: 作业面积（亩） | F160: 作业模式 | G160: 作业深度（厘米） | H160: 作业机手姓名 | I160: 农机作业服务组织或农机户名称
A162: 1 | B162: 布和 | C162: 磴口县沙金套海苏木召滩嘎查 | D162: 2025-04-08 | E162: 550 | F162: 深松 | G162: 35 | H162: 靳凯 | I162: 磴口县靳凯农机农民专业合作社
A163: 2 | B163: 杨海龙 | C163: 磴口县乌兰布和农场一分场 | D163: 2025-04-09 | E163: 928 | F163: 深松 | G163: 35 | H163: 靳凯 | I163: 磴口县靳凯农机农民专业合作社
A164: 3 | B164: 贺伟 | C164: 磴口县乌兰布和农场三分场 | D164: 2025-04-12 | E164: 331 | F164: 深松 | G164: 37 | H164: 靳凯 | I164: 磴口县靳凯农机农民专业合作社
A165: 合计 | E165: =SUM(E162:E164) -> 1809
A166: 旗县（区）农牧部门、垦区农机化管理部门（盖章）： 联系人：王月明
A167: 注：本表公示无异议后，作为核算补助金额的依据。
A168: 耕地深松作业验收单公示
A169: 旗县（区）、乡、村（垦区、农场、农场生产队）名称： 磴口县
A170: 序号 | B170: 土地经营者姓名或名称 | C170: 作业地点 | D170: 作业时间 | E170: 作业面积（亩） | F170: 作业模式 | G170: 作业深度（厘米） | H170: 作业机手姓名 | I170: 农机作业服务组织或农机户名称
A172: 1 | B172: 高宝 | C172: 磴口县乌兰布和农场三分场 | D172: 2025年4月8日-4月12日 | E172: 345 | F172: 深松 | G172: 43 | H172: 段飞 | I172: 磴口县润发种养殖农民专业合作社
A173: 2 | B173: 赵文利 | C173: 磴口县乌兰布和农场三分场 | D173: 2025-04-12 | E173: 95 | F173: 深松 | G173: 41 | H173: 康伟 | I173: 磴口县润发种养殖农民专业合作社
A174: 3 | B174: 谢钢珍 | C174: 磴口县乌兰布和农场三分场 | D174: 2025-04-11 | E174: 279 | F174: 深松 | G174: 40 | H174: 康伟 | I174: 磴口县润发种养殖农民专业合作社
A175: 4 | B175: 谢生虎 | C175: 磴口县乌兰布和农场三分场 | D175: 2025-04-10 | E175: 343 | F175: 深松 | G175: 42 | H175: 康伟 | I175: 磴口县润发种养殖农民专业合作社
A176: 5 | B176: 顾国庆 | C176: 磴口县乌兰布和农场三分场 | D176: 2025-04-09 | E176: 199 | F176: 深松 | G176: 41 | H176: 康伟 | I176: 磴口县润发种养殖农民专业合作社
A177: 6 | B177: 石培宏 | C177: 磴口县乌兰布和农场三分场 | D177: 2025-04-08 | E177: 139 | F177: 深松 | G177: 41 | H177: 康伟 | I177: 磴口县润发种养殖农民专业合作社
A178: 合计 | E178: =SUM(E172:E177) -> 1400
A179: 旗县（区）农牧部门、垦区农机化管理部门（盖章）： 联系人：王月明
A180: 注：本表公示无异议后，作为核算补助金额的依据。
A181: 耕地深松作业验收单公示
A182: 旗县（区）、乡、村（垦区、农场、农场生产队）名称： 磴口县
A183: 序号 | B183: 土地经营者姓名或名称 | C183: 作业地点 | D183: 作业时间 | E183: 作业面积（亩） | F183: 作业模式 | G183: 作业深度（厘米） | H183: 作业机手姓名 | I183: 农机作业服务组织或农机户名称
A185: 1 | B185: 高小飞 | C185: 磴口县沙金苏木巴音毛道嘎查 | D185: 2025年4月8日-4月12日 | E185: 2860 | F185: 深松 | G185: 34 | H185: 雷乌力吉 | I185: 磴口县吉祥种养殖家庭农牧场
A186: 合计 | E186: =SUM(E185:E185) -> 2860
A187: 旗县（区）农牧部门、垦区农机化管理部门（盖章）： 联系人：王月明
A188: 注：本表公示无异议后，作为核算补助金额的依据。
A189: 耕地深松作业验收单公示
A190: 旗县（区）、乡、村（垦区、农场、农场生产队）名称： 磴口县
A191: 序号 | B191: 土地经营者姓名或名称 | C191: 作业地点 | D191: 作业时间 | E191: 作业面积（亩） | F191: 作业模式 | G191: 作业深度（厘米） | H191: 作业机手姓名 | I191: 农机作业服务组织或农机户名称
A193: 1 | B193: 贺志存 | C193: 磴口县沙漠林业实验中心 | D193: 2025年4月8日-4月12日 | E193: 437 | F193: 深松 | G193: 35 | H193: 李军 | I193: 磴口县农泰农业农民专业合作社
A194: 合计 | E194: =SUM(E193:E193) -> 437
A195: 旗县（区）农牧部门、垦区农机化管理部门（盖章）： 联系人：王月明
A196: 注：本表公示无异议后，作为核算补助金额的依据。
A197: 耕地深松作业验收单公示
A198: 旗县（区）、乡、村（垦区、农场、农场生产队）名称： 磴口县
A199: 序号 | B199: 土地经营者姓名或名称 | C199: 作业地点 | D199: 作业时间 | E199: 作业面积（亩） | F199: 作业模式 | G199: 作业深度（厘米） | H199: 作业机手姓名 | I199: 农机作业服务组织或农机户名称
A201: 1 | B201: 张福生 | C201: 磴口县沙金苏木温都尔毛都嘎查南二支 | D201: 2025年4月9日-4月10日 | E201: 279 | F201: 深松 | G201: 34 | H201: 李俊 | I201: 磴口县金昌达农机农民专业合作社
A202: 2 | B202: 马尚宏 | C202: 磴口县沙金苏木温都尔毛都嘎查 | D202: 2025-04-11 | E202: 70 | F202: 深松 | G202: 35 | H202: 李俊 | I202: 磴口县金昌达农机农民专业合作社
A203: 合计 | E203: =SUM(E201:E202) -> 349
A204: 旗县（区）农牧部门、垦区农机化管理部门（盖章）： 联系人：王月明
A205: 注：本表公示无异议后，作为核算补助金额的依据。
A206: 耕地深松作业验收单公示
A207: 旗县（区）、乡、村（垦区、农场、农场生产队）名称： 磴口县
A208: 序号 | B208: 土地经营者姓名或名称 | C208: 作业地点 | D208: 作业时间 | E208: 作业面积（亩） | F208: 作业模式 | G208: 作业深度（厘米） | H208: 作业机手姓名 | I208: 农机作业服务组织或农机户名称
A210: 1 | B210: 王克成 | C210: 磴口县包尔盖农场一分场 | D210: 2025年4月9日-4月12日 | E210: 413 | F210: 深松 | G210: 37 | H210: 李润元 | I210: 磴口县雄丰农机服务农民专业合作社
A211: 2 | B211: 郭小波 | C211: 磴口县沙金套海苏木第八牧场 | D211: 2025年4月8日-4月12日 | E211: 1551 | F211: 深松 | G211: 37 | H211: 李润元 | I211: 磴口县雄丰农机服务农民专业合作社
A212: 合计 | E212: =SUM(E210:E211) -> 1964
A213: 旗县（区）农牧部门、垦区农机化管理部门（盖章）： 联系人：王月明
A214: 注：本表公示无异议后，作为核算补助金额的依据。
A215: 耕地深松作业验收单公示
A216: 旗县（区）、乡、村（垦区、农场、农场生产队）名称： 磴口县
A217: 序号 | B217: 土地经营者姓名或名称 | C217: 作业地点 | D217: 作业时间 | E217: 作业面积（亩） | F217: 作业模式 | G217: 作业深度（厘米） | H217: 作业机手姓名 | I217: 农机作业服务组织或农机户名称
A219: 1 | B219: 吴银飞 | C219: 磴口县乌兰布和农场六分场 | D219: 2025年4月8日4月-12日 | E219: 228 | F219: 深松 | G219: 33 | H219: 李向东 | I219: 磴口县农泰农业农民专业合作社
A220: 2 | B220: 吴银飞 | C220: 磴口县巴彦套海农场五分场 | D220: 2025年4月9日4月-12日 | E220: 215 | F220: 深松 | G220: 36 | H220: 李向东 | I220: 磴口县农泰农业农民专业合作社
A221: 3 | B221: 刘平 | C221: 磴口县巴彦套海农场机械队 | D221: 2025年4月10日4月-12日 | E221: 181 | F221: 深松 | G221: 34 | H221: 李向东 | I221: 磴口县农泰农业农民专业合作社
A222: 合计 | E222: =SUM(E219:E221) -> 624
A223: 旗县（区）农牧部门、垦区农机化管理部门（盖章）： 联系人：王月明
A224: 注：本表公示无异议后，作为核算补助金额的依据。
A225: 耕地深松作业验收单公示
... 609 more rows
